Cogmind - Beta 10.2 @@@ ROGUE MODE // 2022.01.16 @ 11:22:53 Player: Nomad Result: Destroyed by S-10 Pest with Light Assault Rifle Performance ------------- Evolutions (0) 0 Regions Visited (2) 400 Robots Destroyed (19) 95 Value Destroyed (415) 415 Prototype IDs (4) 80 Alien Tech Used (0) 0 Bonus (0) 0 TOTAL SCORE: 990 Bonus ------- None Cogmind --------- Core Integrity 0/250 Matter 300/300 Energy 160/160 System Corruption 0% Temperature Cool (108) Movement Flying (277) Ox3 Location -10/Mines Parts ------- > --- POWER (1) -------- Light Nuclear Core > --- PROPULSION (2) --- Flight Unit Flight Unit > --- UTILITY (2) ------ Large Storage Unit Improved Targeting Computer > --- WEAPON (2) ------- Particle Cannon > --- INVENTORY (10) --- Heat Sink Core Shielding Datajack Peak State ------------ > --- POWER ------------ Light Nuclear Core > --- PROPULSION ------- Flight Unit Flight Unit > --- UTILITY ---------- Large Storage Unit Improved Targeting Computer > --- WEAPON ----------- Particle Cannon > --- INVENTORY -------- Heat Sink Core Shielding Datajack [Rating: 10] Favorites ----------- Power Ion Engine Engine Ion Engine Power Core Light Nuclear Core Propulsion Aluminum Leg Leg Aluminum Leg Flight Unit Flight Unit Utility Large Storage Unit Storage Large Storage Unit Processor Improved Targeting Computer Protection Light Armor Plating Weapon Light Assault Rifle Energy Gun EM Pulse Gun Energy Cannon Particle Cannon Ballistic Gun Light Assault Rifle Build | -11 -10 -10 ------- Run | Scr Mat Min Slots Evolved . | . . . Power . | . . . Propulsion . | . . . Utility . | . . . Weapon . | . . . Parts Attached 16 | 5 7 4 Power 2 | 1 . 1 Engine 1 | 1 . . Core 1 | . . 1 Reactor . | . . . Propulsion 5 | 2 1 2 Treads . | . . . Leg 3 | 2 1 . Wheel . | . . . Hover . | . . . Flight 2 | . . 2 Utility 3 | . 3 . Device . | . . . Storage 1 | . 1 . Processor 1 | . 1 . Hackware . | . . . Protection 1 | . 1 . Artifact . | . . . Weapon 6 | 2 3 1 Energy Gun 1 | 1 . . Energy Cannon 3 | . 2 1 Ballistic Gun 2 | 1 1 . Ballistic Cannon . | . . . Launcher . | . . . Special Weapon . | . . . Impact Weapon . | . . . Slashing Weapon . | . . . Piercing Weapon . | . . . Special Melee Weapon . | . . . Unidentified Prototypes . | . . . Parts Lost 7 | . 2 5 Power 1 | . . 1 Propulsion 3 | . 1 2 Utility . | . . . Weapon 3 | . 1 2 Highest Loss Streak 5 | . 2 5 Average Slot Usage (%) 84 | . 86 81 Engine 9 | . 14 . Core 4 | . . 12 Leg 18 | . 27 . Flight 8 | . . 24 Storage 7 | . 4 14 Processor 6 | . 1 14 Protection 6 | . 9 . Energy Gun 3 | . 4 . Energy Cannon 10 | . 9 14 Ballistic Gun 9 | . 14 . Naked Turns . | . . . Heaviest Build 31 | 8 31 28 Greatest Support 20 | 20 20 20 Greatest Overweight (x) 6 | 1 1 6 Average Overweight (x) . | . . 2 Largest Inventory Capacity 10 | 4 10 10 Average Capacity 7 | 4 5 10 Most Carried 6 | 2 6 6 Average Carried 3 | . 3 3 Final Capacity 10 | 4 10 10 Final Carried 6 | 1 6 3 Class Distribution -------------------- 100% | Mutant Dominant Class ---------------- Mutant | -10/Materials Mutant | -10/Mines Resources | -11 -10 -10 ----------- Run | Scr Mat Min Matter Collected 383 | 234 100 49 Remotely . | . . . Salvage Created 577 | . 363 214 Parts 32 | . 22 10 Haulers Intercepted . | . . . Recyclers Shooed . | . . . Parts Field Recycled . | . . . Retrieved Matter . | . . . Parts Self-Destructed . | . . . Prevented . | . . . Kills | -11 -10 -10 ------- Run | Scr Mat Min Combat Hostiles Destroyed 16 | . 12 4 Guns 11 | . 11 . Cannons 5 | . 1 4 Classes Destroyed 4 | . 3 1 Builder 1 | . . 1 Watcher 2 | . 2 . Swarmer 8 | . 8 . Grunt 8 | . 4 4 Best Kill Streak 4 | . 4 3 Combat Bots Only 3 | . 3 3 Max Kills in Single Turn 1 | . 1 1 Gunslinging . | . . . Exploded . | . . . Melee . | . . . Uniques/NPCs Destroyed . | . . . Combat | -11 -10 -10 -------- Run | Scr Mat Min Damage Taken 994 | . 643 351 Core 252 | . 142 110 Absorbed by Shields . | . . . Core Remaining (%) 100 | 100 . . Volleys Fired 60 | . 43 17 Largest 2 | . 2 2 Hottest 128 | . 80 128 Shots Fired 105 | . 85 20 Gun 76 | . 76 . Cannon 29 | . 9 20 Launcher . | . . . Special . | . . . Kinetic 53 | . 53 . Thermal 29 | . 9 20 Explosive . | . . . Electromagnetic 23 | . 23 . Robot Hit Streak 10 | . 10 6 Robot Miss Streak 4 | . 4 2 Penetration Max . | . . . Secondary Targets . | . . . Shots Hit Robots 68 | . 54 14 Core Hits 27 | . 20 7 Critical Hits . | . . . Critical Kills . | . . . Critical Parts Destroyed . | . . . Melee Attacks . | . . . Impact . | . . . Slashing . | . . . Piercing . | . . . Sneak Attacks . | . . . Combat Hostiles . | . . . Follow-up Attacks . | . . . Damage Inflicted 884 | . 612 272 Guns 484 | . 484 . Cannons 334 | . 71 263 Explosions 54 | . 54 . Melee . | . . . Ramming 12 | . 3 9 Kinetic 257 | . 257 . Thermal 388 | . 125 263 Explosive . | . . . Electromagnetic 227 | . 227 . Impact . | . . . Slashing . | . . . Piercing . | . . . Highest Corruption . | . . . Average Corruption . | . . . Corruption Purged . | . . . Overload Shots . | . . . Overflow Damage . | . . . Projectiles . | . . . Explosions . | . . . Melee . | . . . Knockbacks . | . . . Impact . | . . . Kinetic . | . . . Secondary . | . . . Self-Inflicted Damage 24 | . 20 4 Shots 1 | . 1 . Rammed 3 | . 1 2 Targets Rammed 3 | . 1 2 Kicked . | . . . Crushed . | . . . Highest Temperature 240 | . 144 240 Average Temperature 67 | . 53 102 Received Heat Transfer 354 | . 180 174 Siege Activations . | . . . Robots Corrupted . | . . . Combat Hostiles . | . . . Parts Fried . | . . . Impact Corruptions . | . . . Robots Melted . | . . . Combat Hostiles . | . . . Parts Melted 1 | . . 1 Heat Transferred 729 | . 248 481 Parts Sabotaged . | . . . Parts Stolen . | . . . Parts Stripped . | . . . Power Chain Reactions 1 | . 1 . Missiles Intercepted . | . . . Alert | -11 -10 -10 ------- Run | Scr Mat Min Peak Influence 223 | . 223 75 Initial . | . . . Average 73 | . 84 61 Maximum Alert Level 1 | . 1 . Low Security (%) 97 | 100 95 100 Level 1 2 | . 4 . Level 2 . | . . . Level 3 . | . . . Level 4 . | . . . Level 5 . | . . . High Security . | . . . Max Security . | . . . Squads Dispatched 2 | . 2 . Investigation 1 | . 1 . Extermination . | . . . Reinforcement 1 | . 1 . Assault . | . . . Garrison . | . . . Intercept . | . . . Construction Impeded . | . . . Haulers Reinforced . | . . . Stealth | -11 -10 -10 --------- Run | Scr Mat Min Distress Signals . | . . . Communications Jammed . | . . . Distress Signals . | . . . Times Spotted 27 | . 20 7 Peak Tracking Total 4 | . 4 4 Tactical Retreats . | . . . Traps | -11 -10 -10 ------- Run | Scr Mat Min Traps Triggered . | . . . Indirectly . | . . . Trap Hack Attempts . | . . . Triggered . | . . . Disarmed . | . . . Reprogrammed . | . . . Reused . | . . . Traps Extracted . | . . . Installed . | . . . Triggered . | . . . Machines | -11 -10 -10 ---------- Run | Scr Mat Min Machines Disabled . | . . . Max in Single Turn . | . . . Machines Sabotaged . | . . . Garrisons Compromised . | . . . Overloaded Fab Kills . | . . . Fab Network Shutdowns . | . . . Hacking | -11 -10 -10 --------- Run | Scr Mat Min Machines Accessed 8 | . 8 . Terminals 6 | . 6 . Fabricators . | . . . Repair Stations 1 | . 1 . Recycling Units 1 | . 1 . Scanalyzers . | . . . Garrison Access . | . . . Total Hacks 31 | . 31 . Successful 19 | . 19 . Failed 12 | . 12 . Catastrophic 2 | . 2 . Database Lockouts . | . . . Manual . | . . . Terminals 26 | . 26 . Fabricators . | . . . Repair Stations 3 | . 3 . Recycling Units 2 | . 2 . Scanalyzers . | . . . Garrison Access . | . . . Terminal Hacks 16 | . 16 . Record 7 | . 7 . Robot Analysis 1 | . 1 . Prototype ID Bank 3 | . 3 . Terminal Index 1 | . 1 . Alert Level 2 | . 2 . Unreport Threat 1 | . 1 . Dispatch Records 1 | . 1 . Fabricator Hacks . | . . . Repair Station Hacks 1 | . 1 . Scan Component 1 | . 1 . Recycling Unit Hacks 2 | . 2 . Report Inventory 2 | . 2 . Scanalyzer . | . . . Garrison Access Hacks . | . . . Unauthorized Hacks . | . . . Terminals . | . . . Fabricators . | . . . Repair Stations . | . . . Recycling Units . | . . . Scanalyzers . | . . . Garrison Access . | . . . Data Cores Recovered . | . . . Used . | . . . Hacking Detections 7 | . 7 . Full Trace Events 2 | . 2 . Feedback Events . | . . . Feedback Blocked . | . . . Robot Schematics Acquired . | . . . Robots Built . | . . . Matter . | . . . Time . | . . . Total Robot Build Rating . | . . . Part Schematics Acquired . | . . . Parts Built . | . . . Matter . | . . . Time . | . . . Total Part Build Rating . | . . . Parts Repaired . | . . . Time . | . . . Parts Recycled . | . . . Recycled Matter . | . . . Retrieved Matter . | . . . Retrieved Components . | . . . Parts Scanalyzed . | . . . Part Schematics Acquired . | . . . Parts Damaged . | . . . Bothacking | -11 -10 -10 ------------ Run | Scr Mat Min Used RIF Installer . | . . . Robots Hacked . | . . . Non-combat . | . . . Combat . | . . . Robot Hacks Applied . | . . . Relay Couplers Released . | . . . Robots Rewired . | . . . Allies Hacked . | . . . Hacks Repelled . | . . . Allies | -11 -10 -10 -------- Run | Scr Mat Min Total Allies . | . . . Largest Group . | . . . Highest-Rated Group . | . . . Highest-Rated Ally . | . . . Total Orders . | . . . Ally Attacks . | . . . Total Damage . | . . . Kills . | . . . Allies Corrupted . | . . . Allies Melted . | . . . Intel | -11 -10 -10 ------- Run | Scr Mat Min Robot Analysis Total 1 | . 1 . Derelict Logs Recovered . | . . . Drone Launches . | . . . Drone Recoveries . | . . . Exploration | -11 -10 -10 ------------- Run | Scr Mat Min Turns Passed 1314 | 66 816 432 Spaces Moved 675 | 47 485 143 Core 3 | 2 . 1 Treads . | . . . Legs 540 | 45 485 10 Wheels . | . . . Hover . | . . . Flight 132 | . . 132 Fastest Speed 50 | 50 120 150 Average Speed 157 | 118 128 268 Slowest Speed 350 | 120 150 350 Overloaded Moves . | . . . Propulsion Burnouts . | . . . Robots Hopped . | . . . Cave-ins Triggered . | . . . Exploration Rate (%) 43 | 4 89 37 Regions Visited 2 Branch Regions 1 Pre-discovered Areas . | . . . Known Exits Taken . | . . . Unknown Exits Taken 2 | 1 1 . Scrap Searched 1 | . . 1 Spaces Dug . | . . . Terrain Destroyed 3 | . 3 . Melee . | . . . Projectile . | . . . AOE 3 | . 3 . Terrain Rammed . | . . . Walls Destroyed . | . . . Machines Disabled . | . . . Actions | -11 -10 -10 --------- Run | Scr Mat Min Total 830 | 57 606 167 Wait 52 | . 52 . Move 673 | 46 484 143 Hop . | . . . Pick Up 21 | 6 14 1 Fast Attach . | . . . Attach 16 | 5 7 4 Detach . | . . . Swap . | . . . Drop 5 | . 5 . Fire 60 | . 43 17 Melee . | . . . Ram 2 | . . 2 Kick 1 | . 1 . Crush . | . . . Escape Stasis . | . . . Rewire . | . . . Trap . | . . . Miscellaneous . | . . . Route ------- -11/Scrapyard -10/Materials (discovered 4 exits: [*Mat x2] / [*Min x2]) -10/Mines History --------- Turn | Location | Event 26 | -11/Scrapyard | Discovered new exit (range 15) 67 | -11/Scrapyard | Entered Materials 301 | -10/Materials | Build established: Mutant 426 | -10/Materials | Core integrity fell below 50% 469 | -10/Materials | Discovered new exit (range 16) 540 | -10/Materials | Discovered new exit (range 7) 616 | -10/Materials | Discovered new exit (range 5) 789 | -10/Materials | Discovered new exit (range 15) 883 | -10/Materials | Entered Mines 924 | -10/Mines | Core integrity fell below 20% 948 | -10/Mines | Lost 5 parts (1p2n2w) 1315 | -10/Mines | Destroyed by S-10 Pest with Light Assault Rifle Last Messages --------------- G-47 Trooper destroyed. G-34 Mercenary destroyed. Acquired 19 matter. Aluminum Leg destroyed. Aluminum Leg melted. G-47 Trooper destroyed. Acquired Lgt. Nuclear Core. Flying robots can pass through spaces occupied by others, even hostile robots. Acquired 30 matter. Slammed into U-05 Engineer. K-01 Serf collects debris. K-01 Serf cleans the Plasma Injector. K-01 Serf collects debris. Searching scrap... Found Hcp. Battery. Found Sensor Array. Found 23 Matter. Slammed into U-05 Engineer. U-05 Engineer destroyed. Map ----- +----------------------------------------------------+ | | | | | | | | | ????????????????????????????????? | | ????????????????????????????????? | | ????????????????????????????????? | | ???????????????????????????????## | | ??????????????????????????????## | | ??????????????????????????????# | | ??????????????????????????????# | | ??????????????????????????????# | | ???????#???????????????#####??# | | ??????? ???????????##### #### | | ??????" "?????????## ## | | ??????" "????????## | | ??????" "???????## ## ## | | ??# ??????# #### ### | | ??? """ ""??????# ####??# #?? | | ????""" "???????## ##?????# #?? | | ????""" "????????# #????## #?? | | ????? ????????# ##??# #?? | | ?????? ????????# ### #?? | | ??????#s#????????# ##?# | | ??????#s#######??# """ ##?## | | ??????# @ #??# """ ##??# | | ??????####### #### """ #???# | | ????????????# #?## | | ????????????# ### ## | | ????????????# #?## | | ????????????# #??### | | ???????????? #?????# | | ???????????? ??????### | | ???????????? ?????????# ## | | ????????????###??????????# ### | | ?????????????????????????? #?#? ? | | ???????????????????????????#????? | | ????????????????????????????????? | | ????????????????????????????????? | | ????????????????????????????????? | | ????????????????????????????????? | | ????????????????????????????????? | | ????????????????????????????????? | | ????????????????????????????????? | | ????????????????????????????????? | | ????????????????????????????????? | | ????????????????????????????????? | | ????????????????????????????????? | | ????????????????????????????????? | | ????????????????????????????????? | +----------------------------------------------------+ Best States ------------- Heat Dissipation 25 Energy Generation 14 Energy Capacity 250 Matter Stores 300 Matter Capacity 300 Sight Range 16 Terrain Scan Density 10 Armor Coverage 150 Evasion (%) 40 Targeting Accuracy 6 Item Schematics ----------------- None Robot Schematics ------------------ None Fabricated ------------ Nothing Alien Tech Used ----------------- None Achievements -------------- Everything Is Under Control One Hack Too Far Challenges ------------ None Game ------ Seed AntimissileAssemblyTendrils Manual? 0 Play Time 00:13:19 Cumulative 1.8 hours Start 2022.01.16 @ 11:08:31 End 2022.01.16 @ 11:22:53 Sessions 1 Manual Loads 0 Difficulty Rogue Special Mode None Game No. 6 Rogue 6 Adventurer 0 Explorer 0 Win Type - Total 0 Types 0/0/0/0/0/0/0/0/0 Lore% 1 Gallery% 4 Achievement% 2 Wizard Run 0 Options --------- ASCII 0 Keyboard 0 Movement Numpad Keybinds 0 Fullscreen 1 Font 18/SmallcapsGlow Map View 76x50 Tactical HUD 0 Map Filters NONE Filters NONE Steam 1 RUN: 62e5437d-b646-444f-8ade-cbd216f075ec